{"text_format":"1","workbook":"xlsx","n_sheets":3,"sheets":["Hoja1","Hoja2","Hoja3"],"not_rendered":{"charts":0,"images":0,"macros":0,"external_links":0,"defined_names":0,"comments":0,"pivot_tables":0},"unopened":[],"bounds":{"document_bytes":16777216,"sheet_cells":100000,"rows_first":2000,"rows_last":500,"rows_between":2000,"halvings":0,"cell_chars":16384,"cell_head_chars":4096},"cells_cut":0,"cells_raw":0,"read":"whole","date_system":"1900"}

{"sheet":"Hoja1","index":0,"n_rows":44,"n_cols":16,"rows_kept":44,"cut":false,"hidden":false,"merged":[[0,1,0,15],[2,1,2,15]]}
[null,"INSTITUTO TECNOLÓGICO SUPERIOR DE PEROTE"]
[]
[null,"VIÁTICOS EJERCIDOS EN EL MES DE: SEPTIEMBRE 2014"]
[]
["ÁREA","OBJETO O MOTIVO DE LA COMISIÓN","SERV. PÚB. COMISIONADOS","LUGAR DE COMISIÓN","DESTINO DE LA COMISIÓN","FECHA DE INICIO","FECHA DE TERMINO","ORIGEN DEL RECURSO","ALIMENTOS","HOSPEDAJE","PASAJES","PEAJES","TRASLADOS LOCALES","COMBUSTIBLES","IMPORTE EJERCIDO","RESPONSABLE QUE PROPORCIONA LA INFORMACIÓN"]
["PYV","ASISTIR A ENTREGA DE INVITACIONES",1,"EDO.","XALAPA, VER.","2014-09-02","2014-09-02","FED.",360,null,null,212,null,300,{"$f":"SUM(I6:N6)","v":872},"REC. FINANCIEROS"]
["PYV","ASISTIR A ENTREGA DE INVITACIONES",1,"EDO.","PEROTE, VER.","2014-09-02","2014-09-02","FED.",null,null,null,null,null,150,null,"REC. FINANCIEROS"]
["PYV","ASISTIR A ENTREGA DE INVITACIONES",1,"EDO.","PEROTE, VER.","2014-09-02","2014-09-02","FED.",null,null,null,null,null,150,null,"REC. FINANCIEROS"]
["PYV","ASISTIR A ENTREGA DE INVITACIONES",1,"EDO.","PEROTE, VER.","2014-09-02","2014-09-02","FED.",null,null,null,null,null,300,null,"REC. FINANCIEROS"]
["PYV","ASISTIR A ENTREGA DE INVITACIONES",1,"EDO.","PEROTE, VER.","2014-09-02","2014-09-02","FED.",null,null,null,null,null,150,null,"REC. FINANCIEROS"]
["PYV","ASISTIR A ENTREGA DE INVITACIONES",1,"EDO.","PEROTE, VER.","2014-09-02","2014-09-02","FED.",null,null,null,null,null,300,null,"REC. FINANCIEROS"]
["PYV","ASISTIR A ENTREGA DE INVITACIONES",1,"EDO.","PEROTE, VER.","2014-09-02","2014-09-02","FED.",null,null,null,null,null,200,null,"REC. FINANCIEROS"]
["PYV","ASISTIR A ENTREGA DE INVITACIONES",1,"EDO.","PEROTE, VER.","2014-09-02","2014-09-02","FED.",null,null,null,null,null,200,null,"REC. FINANCIEROS"]
["PYV","ASISTIR AL INSTITUTO POLITECNICO NACIONAL",1,"NAC.","MEXICO, D.F.","2014-09-06","2014-09-06","FED.",300,null,764,null,736,null,{"$f":"SUM(I14:N14)","v":1800},"REC. FINANCIEROS"]
["ACAD.","ASISTIR AL TALLER DE VINCULACION",1,"NAC.","MEXICO, D.F.","2014-09-03","2014-09-03","FED.",360,null,700,null,null,null,{"$f":"SUM(I15:N15)","v":1060},"REC. FINANCIEROS"]
["ACAD.","ASISTIR A REUNION DE TRABAJO",1,"EDO.","MISANTLA, VER.","2014-09-04","2014-09-04","FED.",600,null,null,null,null,700,1300,"REC. FINANCIEROS"]
["PYV","ASISTIR A EVENTO DE REFORESTACION",1,"EDO.","TENEXTEPEC, MPIO. PEROTE, VER.","2014-09-10","2014-09-10","FED.",null,null,null,null,null,150,150,"REC. FINANCIEROS"]
["ADMO.","ASISTIR A REUNION DE TRABAJO EN LA DET",1,"EDO.","XALAPA, VER.","2014-09-10","2014-09-10","FED.",660,null,null,212,null,200,1072,"REC. FINANCIEROS"]
["ADMO.","ASISTIR A LA SECRETARIA DE TRABAJO",1,"EDO.","XALAPA, VER.","2014-09-11","2014-09-11","FED.",600,null,248,null,100,null,948,"REC. FINANCIEROS"]
["ACAD.","ASISTIR A REUNION DE TRABAJO EN EL TECNOLOGICO DE VERACRUZ",1,"EDO.","VERACRUZ, VER.","2014-09-12","2014-09-13","FED.",2100,null,null,514,null,700,3314,"REC. FINANCIEROS"]
["ACAD.","ASISTIR A LA SECRETARIA DE TRABAJO",1,"EDO.","XALAPA, VER.","2014-09-18","2014-09-18","FED.",600,null,null,212,200,200,1212,"REC. FINANCIEROS"]
["ACAD.","ASISTIR A REUNION DE TRABAJO EN EL NTM",1,"NAC.","MEXICO, D.F.","2014-09-19","2014-09-19","FED.",360,null,null,610,null,700,1670,"REC. FINANCIEROS"]
["ADMO.","ASISTIR A ENTREGA DE DOCUMENTACION",1,"EDO.","XALAPA, VER.","2014-09-12","2014-09-12","FED.",300,null,124,null,176,null,600,"REC. FINANCIEROS"]
["PYV","ASISTIR A REVISION DE CARPETA DE JUNTA DIRECTIVA",1,"EDO.","XALAPA, VER.","2014-09-19","2014-09-19","FED.",360,null,null,212,null,200,772,"REC. FINANCIEROS"]
["ACAD.","ASISTIR A PRACTICAS DE CAMPO",1,"EDO.","LAS VIGAS DE RAMIREZ, VER.","2014-09-19","2014-09-19","FED.",200,null,null,null,null,100,300,"REC. FINANCIEROS"]
["ACAD.","ASISTIR A PRACTICAS DE CAMPO",1,"EDO.","LAS VIGAS DE RAMIREZ, VER.","2014-09-19","2014-09-19","FED.",300,null,null,null,null,200,500,"REC. FINANCIEROS"]
["ACAD.","ASISTIR A PRACTICAS DE CAMPO",1,"EDO.","ACTOPAN, VER.","2014-09-20","2014-09-20","FED.",800,null,null,200,null,300,1300,"REC. FINANCIEROS"]
["ACAD.","ASISTIR A PRACTICAS DE CAMPO",1,"EDO.","ACTOPAN, VER.","2014-09-20","2014-09-20","FED.",800,null,null,200,null,300,1300,"REC. FINANCIEROS"]
["PYV","ASISTIR A ENTREGAR ANTEPROYECTO DEL PRESUPUESTO 2015 EN LA DET",1,"EDO.","XALAPA, VER.","2014-09-22","2014-09-22","FED.",660,null,null,212,100,300,1272,"REC. FINANCIEROS"]
["PYV","ASISTIR A REUNION DE TRABAJO",1,"EDO.","XALAPA, VER.","2014-09-23","2014-09-23","FED.",null,null,null,212,null,200,412,"REC. FINANCIEROS"]
["ACAD.","ASISTIR A REUNION PREVIA DEL COESMA 2014",1,"EDO.","XALAPA, VER.","2014-09-24","2014-09-24","FED.",300,null,232,null,100,null,632,"REC. FINANCIEROS"]
["ADMO.","ASISTIR A ENTREGA DE INFORMACION A SEFIPLAN Y AL SAT",1,"EDO.","XALAPA, VER.","2014-09-24","2014-09-24","FED.",300,null,212,null,null,200,712,"REC. FINANCIEROS"]
["PYV","ASISTIR A ENTREGA DE INVITACIONES",1,"EDO.","XALAPA, VER.","2014-09-24","2014-09-24","FED.",360,null,212,null,null,200,772,"REC. FINANCIEROS"]
["PYV","ASISTIR A REUNION DE TRABAJO REFERENTE A JUNTA DIRECTIVA.",1,"EDO.","XALAPA, VER.","2014-09-25","2014-09-25","FED.",null,null,212,null,null,200,412,"REC. FINANCIEROS"]
["PYV","ASISTIR A REUNION DE TRABAJO EN LA DIRECCION DE EDUCACION TECNOLOGICA",1,"EDO.","XALAPA, VER.","2014-09-26","2014-09-26","FED.",720,null,318,null,62,400,1500,"REC. FINANCIEROS"]
[null,null,null,null,null,null,null,null,null,null,null,null,null,null,0,"REC. FINANCIEROS"]
[]
[]
["PyV","DIRECCIÓN DE PLANEACIÓN Y VINCULACIÓN"]
["ACAD.","DIRECCIÓN ACADÉMICA"]
["SIND.","SINDICATO"]
["ADMO.","SUBDIRECCIÓN ADMINISTRATIVA"]
["FED. ","RECURSO FEDERAL"]
["I.P.","INGRESOS PROPIOS"]

{"sheet":"Hoja2","index":1,"n_rows":0,"n_cols":0,"rows_kept":0,"cut":false,"hidden":false,"merged":[]}

{"sheet":"Hoja3","index":2,"n_rows":0,"n_cols":0,"rows_kept":0,"cut":false,"hidden":false,"merged":[]}